fUST/lending_fUST_20251027
["ID","MTS","AMOUNT","RATE_DAILY","PERIOD"]
[392453196,1761501033297,-180.0,0.0002272,2]
[392453197,1761501033306,-180.0,0.00022761,2]
[392453198,1761501033315,-694.02116768,0.00022826,2]
[392453203,1761501038258,-500.0,0.00018983,2]
[392453204,1761501038268,-162.39238305,0.00018983,2]
[392453205,1761501038277,-888.60883232,0.00022826,2]
[392453206,1761501038287,-1898.54017923,0.00022833,2]
[392453207,1761501038296,-180.0,0.00022834,2]
[392453208,1761501038307,-250.0,0.00022845,2]
[392453209,1761501038316,-180.0,0.00022871,2]
[392453210,1761501038326,-460.0,0.00022944,2]
[392453211,1761501038335,-26403.99428056,0.00023,4]
[392453212,1761501038344,-180.0,0.00023013,2]
[392453213,1761501038353,-839.23858351,0.00023018,2]
[392453214,1761501038363,-250.95517076,0.00023069,2]
[392453215,1761501038373,-348.41785097,0.00023069,2]
[392453216,1761501038382,-1002.81686236,0.00023069,2]
[392453217,1761501038392,-1898.54017923,0.000231,2]
[392453218,1761501038403,-500.0,0.00023216,2]
[392453219,1761501038413,-500.0,0.0002331,2]
[392453220,1761501038423,-1898.54017923,0.00023312,2]
[392453221,1761501038432,-180.0,0.00023335,2]
[392453222,1761501038442,-180.0,0.0002337,2]
[392453223,1761501038451,-500.0,0.00023374,2]
[392453224,1761501038461,-168.0,0.00023377,2]
[392453225,1761501038471,-500.0,0.00023401,2]
[392453226,1761501038480,-180.0,0.00023418,2]
[392453227,1761501038489,-180.0,0.00023468,2]
[392453228,1761501038498,-560.0,0.00023492,2]
[392453229,1761501038507,-180.0,0.00023507,2]
[392453230,1761501038516,-180.0,0.00023508,2]
[392453231,1761501038525,-12500.0,0.00023548,7]
[392453232,1761501038535,-12500.0,0.00023557,7]
[392453233,1761501038547,-12500.0,0.00023565,7]
[392453234,1761501038556,-12500.0,0.00023574,7]
[392453235,1761501038565,-12500.0,0.00023583,7]
[392453236,1761501038576,-180.0,0.00023599,2]
[392453237,1761501038586,-180.0,0.00023607,2]
[392453238,1761501038595,-500.0,0.00023611,2]
[392453239,1761501038604,-500.0,0.00023611,2]
[392453240,1761501038614,-500.0,0.00023611,2]
[392453241,1761501038623,-500.0,0.00023611,2]
[392453242,1761501038632,-500.0,0.00023611,2]
[392453243,1761501038642,-500.0,0.00023611,2]
[392453244,1761501038651,-25972.7651808,0.00023613,2]
[392453245,1761501038661,-969.7382054,0.00023613,2]
[392453246,1761501038671,-180.0,0.00023644,2]
[392453247,1761501038680,-500.52718912,0.00023666,2]
[392453248,1761501038689,-500.0,0.00023702,2]
[392453249,1761501038699,-1846.41,0.00023704,2]
[392453250,1761501038709,-500.0,0.00023706,2]
[392453251,1761501038719,-1392.27773248,0.00023729,2]
[392453252,1761501038728,-500.0,0.00023748,2]
[392453253,1761501038738,-300.0,0.00023748,2]
[392453254,1761501038748,-1115.81991353,0.00023762,2]
[392453255,1761501038772,-782.7202657,0.00023762,2]
[392453256,1761501038781,-125.8397343,0.00023767,2]
[392453260,1761501040504,-54.1602657,0.00023767,2]
[392453262,1761501040515,-180.0,0.00023843,2]
[392453264,1761501040525,-500.0,0.0002387,2]
[392453266,1761501040534,-304.68811614,0.00023885,2]
[392453268,1761501040544,-500.0,0.00023919,2]
[392453270,1761501040554,-38470.66633647,0.00024,30]
[392453272,1761501040563,-33241.70817499,0.00024,60]
[392453732,1761501046629,-1630.4,0.00024,60]
[392453733,1761501147224,165.658393,0.00013699,2]
[392453825,1761502232589,-369.77,0.00017917,2]
[392453827,1761502232599,-369.77,0.00018098,2]
[392453829,1761502232607,-169.77,0.0001863,2]
[392453831,1761502232616,-200.0,0.00018653,2]
[392453833,1761502232626,-403.49456409,0.00018768,2]
[392453835,1761502232635,-300.0,0.00018867,2]
[392453837,1761502232644,-300.0,0.00018867,2]
[392453838,1761502232653,-1200.0,0.00018867,2]
[392453840,1761502232662,-1200.0,0.00018868,2]
[392453842,1761502232672,-500.0,0.00018868,2]
[392453844,1761502232681,-295.8213759,0.00018868,2]
[392453846,1761502232690,-500.0,0.00018868,2]
[392453848,1761502232699,-500.0,0.00018868,2]
[392453850,1761502232709,-500.0,0.00018868,2]
[392453852,1761502232719,-500.0,0.00018868,2]
[392453855,1761502232728,-500.0,0.00018868,2]
[392453858,1761502232736,-500.0,0.00018868,2]
[392453860,1761502232745,-500.0,0.00018868,2]
[392453862,1761502232754,-626.90309557,0.00018868,2]
[392453864,1761502232764,-500.0,0.00018868,2]
[392453866,1761502232773,-500.0,0.00018868,2]
[392453868,1761502232782,-382.71829501,0.00018868,2]
[392453870,1761502232791,-440.18286787,0.00018868,2]
[392453872,1761502232800,-563.20489377,0.00018868,2]
[392453874,1761502232810,-500.0,0.00018868,2]
[392453876,1761502232818,-500.0,0.00018868,2]
[392453878,1761502232827,-500.0,0.00018868,2]
[392453880,1761502232836,-500.0,0.00018868,2]
[392453882,1761502232845,-500.0,0.00018868,2]
[392453884,1761502232859,-500.0,0.00018868,2]
[392453886,1761502232868,-500.0,0.00018868,2]
[392453888,1761502232877,-500.0,0.00018868,2]
[392453890,1761502232886,-500.0,0.00018868,2]
[392453892,1761502232896,-500.0,0.00018868,2]
[392453894,1761502232905,-500.0,0.00018868,2]
[392453896,1761502232915,-500.0,0.00018868,2]
[392453898,1761502232924,-500.0,0.00018868,2]
[392453900,1761502232934,-500.0,0.00018868,2]
[392453902,1761502232943,-518.52873162,0.00018868,2]
[392453904,1761502232952,-499.99999999,0.00018868,2]
[392453906,1761502232962,-15295.46249937,0.00018869,2]
[392453928,1761502238491,-369.77,0.00017738,2]
[392453929,1761502238502,-11507.62307357,0.00018869,2]
[392453930,1761502238512,-198.98820082,0.00018872,2]
[392453931,1761502238523,-500.0,0.00018873,2]
[392453932,1761502238533,-500.0,0.00018873,2]
[392453933,1761502238543,-500.0,0.00018873,2]
[392453935,1761502238552,-500.0,0.00018873,2]
[392453936,1761502238561,-500.0,0.00018873,2]
[392453937,1761502238570,-241.49164293,0.00018873,2]
[392453958,1761502240740,-181.22845061,0.000186,2]
[392453960,1761502240749,-258.50835707,0.00018873,2]
[392453962,1761502240758,-500.0,0.00018873,2]
[392453964,1761502240768,-500.0,0.00018873,2]
[392453966,1761502240778,-3088.09790511,0.0001889,2]
[392454264,1761502243741,-2005.28266118,0.0001889,2]
[392454326,1761502246683,-87436.41184036,0.0001889,2]
[392460124,1761502582113,-289.43764149,0.00015682,2]
[392460125,1761502582136,-289.43764149,0.0001584,2]
[392460126,1761502582162,-289.43764149,0.00016,2]
[392460127,1761502586192,213.5356687,0.0003,120]
[392460137,1761502781794,4340.80235851,0.00018262,8]
[392460138,1761502789864,5000.0,0.00018262,8]
[392460139,1761502812847,5000.0,0.00018262,8]
[392460141,1761502905124,545.992432,0.00013699,2]
[392460380,1761503431768,-846.83921985,0.000173,2]
[392460387,1761503431823,-4153.16078015,0.000173,2]
[392460389,1761503431832,-200.0,0.00017475,2]
[392460391,1761503431841,-666.0,0.00017652,2]
[392460393,1761503431850,-1200.0,0.00017997,2]
[392460395,1761503431860,-300.0,0.00017998,2]
[392460397,1761503431868,-300.0,0.00017998,2]
[392460399,1761503431877,-300.0,0.00017998,2]
[392460401,1761503431886,-186.31976234,0.00017999,2]
[392460402,1761503431896,-208.29921903,0.00017999,2]
[392460404,1761503431905,-500.0,0.00017999,2]
[392460407,1761503431914,-256.04000004,0.00017999,2]
[392460409,1761503431922,-500.0,0.00017999,2]
[392460413,1761503431932,-500.0,0.00017999,2]
[392460416,1761503431942,-500.0,0.00017999,2]
[392460418,1761503431950,-500.0,0.00017999,2]
[392460421,1761503431959,-500.0,0.00017999,2]
[392460424,1761503431968,-406.05057343,0.00017999,2]
[392460427,1761503431977,-500.0,0.00017999,2]
[392460430,1761503431986,-500.0,0.00017999,2]
[392460433,1761503431995,-563.84269042,0.00017999,2]
[392460436,1761503432004,-46534.242155,0.00018,2]
[392460439,1761503432013,-5131.76796127,0.00018,2]
[392460441,1761503432022,-208.57736393,0.000181,2]
[392460443,1761503432031,-208.57736393,0.000183,2]
[392460445,1761503432040,-403.49456409,0.00018507,2]
[392460447,1761503432054,-167.61,0.00018568,2]
[392460449,1761503432063,-1886.42923476,0.00018591,2]
[392460451,1761503432072,-1200.0,0.00018696,2]
[392460453,1761503432080,-50000.0,0.00018698,2]
[392460455,1761503432091,-838.83368994,0.00018761,2]
[392460457,1761503432100,-225.86823742,0.00018761,2]
[392460459,1761503432109,-500.0,0.00018773,2]
[392460461,1761503432121,-500.0,0.00018773,2]
[392460463,1761503432130,-500.0,0.00018773,2]
[392460465,1761503432138,-500.0,0.00018773,2]
[392460467,1761503432147,-292.16202918,0.00018773,2]
[392460469,1761503432156,-500.0,0.00018773,2]
[392460471,1761503432166,-500.0,0.00018773,2]
[392460473,1761503432176,-500.0,0.00018773,2]
[392460475,1761503432185,-161.79240865,0.00018779,2]
[392460477,1761503432195,-4309.89,0.0001878,3]
[392460479,1761503432204,-2154.94,0.0001878,3]
[392460481,1761503432213,-1077.47,0.0001878,3]
[392460483,1761503432223,-538.74,0.0001878,3]
[392460485,1761503432233,-269.37,0.0001878,3]
[392460487,1761503432241,-808.13,0.0001878,3]
[392460489,1761503432251,-48781.3368612,0.0001879,2]
[392460490,1761503432263,-256.04000004,0.0001879,2]
[392460531,1761503437695,-3678.18436241,0.00017127,2]
[392460544,1761503440107,-1321.81563759,0.00017127,2]
[392460545,1761503440117,-30700.62847348,0.0001879,2]
[392460546,1761503440129,-2149.62566651,0.0001879,2]
[392460563,1761503442703,-58842.34328986,0.0001879,2]
[392460564,1761503442791,-42342.57237411,0.0001879,2]
[392460565,1761503442802,-987.14006591,0.0001879,2]
[392460575,1761503445906,-12480.61707463,0.0001879,2]
[392460596,1761503745264,70000.0,0.00030136,120]
[392460598,1761503765523,3782.62,0.00030137,120]
[392460599,1761503844319,5000.0,0.00018262,8]
[392460600,1761503866497,5000.0,0.00018262,8]
[392460601,1761503896900,165.658393,0.00013699,2]
[392460683,1761504631980,-3827.25718664,0.00016906,2]
[392460685,1761504631992,-1172.74281336,0.00016906,2]
[392460686,1761504632001,-400.049964,0.0001725,2]
[392460688,1761504632011,-300.0,0.0001799,2]
[392460689,1761504632019,-1200.0,0.0001799,2]
[392460690,1761504632029,-300.0,0.0001799,2]
[392460691,1761504632038,-371.17763406,0.0001799,2]
[392460693,1761504632047,-500.0,0.0001799,2]
[392460695,1761504632056,-500.0,0.0001799,2]
[392460697,1761504632066,-500.0,0.0001799,2]
[392460699,1761504632075,-335.71982481,0.0001799,2]
[392460701,1761504632084,-500.0,0.0001799,2]
[392460703,1761504632095,-500.0,0.0001799,2]
[392460705,1761504632105,-500.0,0.0001799,2]
[392460707,1761504632114,-479.70192605,0.0001799,2]
[392460709,1761504632123,-500.0,0.0001799,2]
[392460711,1761504632131,-500.0,0.0001799,2]
[392460713,1761504632141,-538.22800984,0.0001799,2]
[392460715,1761504632150,-1200.0,0.00017991,2]
[392460717,1761504632158,-246.89968958,0.00017991,2]
[392460720,1761504632167,-194.4599752,0.00017991,2]
[392460724,1761504632180,-559.22245996,0.0001847,2]
[392460727,1761504632189,-180.69458996,0.0001847,2]
[392460730,1761504632198,-463.91,0.00018498,3]
[392460733,1761504632208,-2551.51,0.00018498,3]
[392460736,1761504632217,-1275.76,0.00018498,3]
[392460738,1761504632226,-637.88,0.00018498,3]
[392460740,1761504632235,-318.94,0.00018498,3]
[392460742,1761504632244,-159.47,0.00018498,3]
[392460744,1761504632254,-478.41,0.00018498,3]
[392460746,1761504632263,-132356.7046942,0.00018508,2]
[392460748,1761504632274,-704.25000015,0.00018508,2]
[392460749,1761504632285,-1245.10276993,0.00018508,2]
[392460750,1761504632296,-1317.36608033,0.00018508,2]
[392460751,1761504632307,-1484.44962513,0.00018508,2]
[392460752,1761504632323,-288.59252621,0.0001799,2]
[392460753,1761504632332,-5489.49025014,0.00018508,2]
[392460754,1761504632343,-1068.68153257,0.00018508,2]
[392460755,1761504632371,-500.0,0.0001799,2]
[392460756,1761504632381,-500.0,0.0001799,2]
[392460757,1761504632391,-4835.78732189,0.00018508,2]
[392460759,1761504637740,-500.0,0.0001799,2]
[392460760,1761504637749,-500.0,0.0001799,2]
[392460761,1761504637759,-500.0,0.0001799,2]
[392460762,1761504637768,-315.33760659,0.0001799,2]
[392460763,1761504637793,-184.66239341,0.0001799,2]
[392460764,1761504637803,-500.0,0.0001799,2]
[392460765,1761504637812,-500.0,0.0001799,2]
[392460766,1761504637820,-500.0,0.0001799,2]
[392460767,1761504637830,-500.0,0.0001799,2]
[392460768,1761504637839,-500.0,0.0001799,2]
[392460769,1761504637849,-500.0,0.0001799,2]
[392460770,1761504637858,-15102.03537546,0.00018508,2]
[392460771,1761504637928,-822.42279838,0.00018508,2]
[392460772,1761504637939,-471.54538709,0.00018508,2]
[392460773,1761504637950,-1049.11911392,0.00018508,2]
[392460792,1761504640044,-4551.15217874,0.00018323,2]
[392460805,1761504643138,-448.84782126,0.00018323,2]
[392460806,1761504643150,-204053.04505081,0.00018508,2]
[392460807,1761504643160,-165.48,0.0001857,2]
[392460808,1761504643168,-500.0,0.00018573,2]
[392460809,1761504643179,-500.0,0.00018573,2]
[392460810,1761504643188,-500.0,0.00018573,2]
[392460811,1761504643197,-500.0,0.00018573,2]
[392460812,1761504643207,-500.0,0.00018573,2]
[392460813,1761504643216,-500.0,0.00018573,2]
[392460814,1761504643226,-500.0,0.00018573,2]
[392460815,1761504643236,-727.3036541,0.00018608,2]
[392460816,1761504643246,-5073.6048447,0.00018608,2]
[392460817,1761504643255,-5568.6378746,0.00018608,2]
[392460818,1761504643264,-151.0,0.00018608,2]
[392460819,1761504643273,-151.0,0.00018663,2]
[392460820,1761504643283,-198.0,0.00018718,2]
[392460821,1761504643292,-500.0,0.00018771,2]
[392460822,1761504643301,-500.0,0.00018771,2]
[392460823,1761504643310,-264.4546618,0.00018771,2]
[392460824,1761504643318,-3283.1465657,0.00018861,2]
[392460825,1761504643328,-277.8,0.00019,2]
[392460826,1761504643337,-1000.0,0.00019121,2]
[392460827,1761504643346,-1000.0,0.00019121,2]
[392460828,1761504643355,-1000.0,0.00019121,2]
[392460829,1761504643364,-1000.0,0.00019121,2]
[392460830,1761504643373,-1132.56765264,0.00019121,2]
[392460831,1761504643382,-1000.0,0.00019121,2]
[392460832,1761504643392,-1000.0,0.00019121,2]
[392460833,1761504643402,-600.0,0.00019361,2]
[392460834,1761504643412,-330.96,0.00019454,2]
[392460835,1761504643421,-420.0,0.00019629,2]
[392460836,1761504643430,-876.547551,0.00019668,2]
[392460837,1761504643439,-1500.0,0.00019668,2]
[392460838,1761504643448,-1500.0,0.00019668,2]
[392460839,1761504643457,-1500.0,0.00019668,2]
[392460840,1761504643467,-1500.0,0.00019668,2]
[392460841,1761504643476,-1500.0,0.00019668,2]
[392460842,1761504643485,-180.69458993,0.00019863,2]
[392460843,1761504643494,-927.82,0.00019868,3]
[392460844,1761504643504,-5103.02,0.00019868,3]
[392460845,1761504643513,-2551.52,0.00019868,3]
[392460846,1761504643522,-1275.76,0.00019868,3]
[392460847,1761504643531,-637.88,0.00019868,3]
[392460848,1761504643540,-318.94,0.00019868,3]
[392460849,1761504643550,-195.11,0.00020087,2]
[392460850,1761504643559,-545.992432,0.00020187,2]
[392460851,1761504643568,-1375.29920433,0.00020216,2]
[392460852,1761504643577,-2000.0,0.00020216,2]
[392460853,1761504643586,-839.58743516,0.00020216,2]
[392460854,1761504643595,-2000.0,0.00020216,2]
[392460855,1761504643604,-2000.0,0.00020216,2]
[392460856,1761504643614,-496.44,0.00020339,2]
[392460857,1761504643623,-632.412,0.00020462,2]
[392460858,1761504643633,-166.397,0.00020462,2]
[392460859,1761504643643,-2500.0,0.00020764,2]
[392460860,1761504643652,-2500.0,0.00020764,2]
[392460861,1761504643662,-2500.0,0.00020764,2]
[392460862,1761504643671,-1132.0742615,0.00020979,2]
[392460863,1761504643680,-1242.5310607,0.00020979,2]
[392460864,1761504643690,-661.92,0.00021223,2]
[392460865,1761504643699,-180.69458993,0.00021256,2]
[392460866,1761504643708,-720.0,0.00021298,20]
[392460867,1761504643717,-593.40174984,0.00021312,2]
[392460874,1761504853999,4974.09664084,0.00018262,8]
[392460929,1761505500723,400.0,0.00018,10]
[392460966,1761505832327,-300.0,0.00016805,2]
[392460967,1761505832336,-1510.54911172,0.00016806,2]
[392460968,1761505832379,-4530.39116322,0.00016806,2]
[392460969,1761505832388,-500.0,0.00016806,2]
[392460970,1761505832397,-500.0,0.00016806,2]
[392460971,1761505832407,-500.0,0.00016806,2]
[392460972,1761505832417,-200.0,0.00016806,2]
[392460973,1761505832426,-500.0,0.00016806,2]
[392460974,1761505832435,-266.30556467,0.00016806,2]
[392460975,1761505832444,-430.65923544,0.00016806,2]
[392460976,1761505832454,-1076.85927001,0.00017227,2]
[392460977,1761505832463,-48336.05420231,0.00017327,2]
[392460978,1761505832471,-500.0,0.00017327,2]
[392460979,1761505832481,-500.0,0.00017327,2]
[392460980,1761505832491,-500.0,0.00017327,2]
[392460981,1761505832502,-500.0,0.00017327,2]
[392460982,1761505832511,-500.0,0.00017327,2]
[392460983,1761505832520,-500.0,0.00017327,2]
[392460984,1761505832529,-500.0,0.00017327,2]
[392460985,1761505832539,-500.0,0.00017327,2]
[392460986,1761505832548,-500.0,0.00017327,2]
[392460987,1761505832557,-500.0,0.00017327,2]
[392460988,1761505832567,-500.0,0.00017327,2]
[392460989,1761505832577,-500.0,0.00017327,2]
[392460990,1761505832586,-500.0,0.00017327,2]
[392460991,1761505832595,-453.47098432,0.00017327,2]
[392460992,1761505832604,-500.0,0.00017327,2]
[392460993,1761505832613,-500.0,0.00017327,2]
[392460994,1761505832622,-422.08132893,0.00017327,2]
[392460995,1761505832631,-500.0,0.00017327,2]
[392460996,1761505832641,-500.0,0.00017327,2]
[392460997,1761505832650,-200.62160919,0.00017327,2]
[392460998,1761505832659,-500.0,0.00017327,2]
[392460999,1761505832668,-500.0,0.00017327,2]
[392461000,1761505832677,-500.0,0.00017327,2]
[392461001,1761505832687,-500.0,0.00017327,2]
[392461002,1761505832696,-500.0,0.00017327,2]
[392461003,1761505832706,-500.0,0.00017327,2]
[392461004,1761505832715,-500.0,0.00017327,2]
[392461005,1761505832724,-500.0,0.00017327,2]
[392461006,1761505832734,-407.99131441,0.00017327,2]
[392461007,1761505832744,-500.0,0.00017327,2]
[392461008,1761505832753,-500.0,0.000174,2]
[392461009,1761505832762,-500.0,0.000174,2]
[392461010,1761505832771,-500.0,0.000174,2]
[392461011,1761505832780,-500.0,0.000174,2]
[392461012,1761505832790,-3985.0732566,0.0001743,2]
[392461013,1761505832799,-1000.0,0.00017948,2]
[392461014,1761505832808,-1000.0,0.00017948,2]
[392461015,1761505832817,-1000.0,0.00017948,2]
[392461016,1761505832826,-1000.0,0.00017948,2]
[392461017,1761505832835,-403.49456409,0.00018253,2]
[392461018,1761505832845,-500.0,0.00018345,2]
[392461019,1761505832854,-500.0,0.00018345,2]
[392461020,1761505832863,-300.0,0.00018349,2]
[392461021,1761505832872,-300.0,0.00018349,2]
[392461022,1761505832881,-300.0,0.00018349,2]
[392461023,1761505832890,-300.0,0.00018349,2]
[392461024,1761505832899,-300.0,0.00018349,2]
[392461025,1761505832907,-300.0,0.00018349,2]
[392461026,1761505832917,-300.0,0.00018349,2]
[392461027,1761505832926,-300.0,0.00018349,2]
[392461028,1761505832935,-300.0,0.00018349,2]
[392461029,1761505832944,-300.0,0.00018349,2]
[392461030,1761505832953,-300.0,0.00018349,2]
[392461031,1761505832962,-300.0,0.00018349,2]
[392461032,1761505832971,-300.0,0.00018349,2]
[392461033,1761505832980,-300.0,0.00018349,2]
[392461034,1761505832989,-300.0,0.00018349,2]
[392461035,1761505832999,-600.0,0.00018349,2]
[392461036,1761505833008,-420.0,0.00018358,2]
[392461037,1761505833017,-1500.0,0.00018496,2]
[392461038,1761505833026,-1500.0,0.00018496,2]
[392461039,1761505833035,-101.67229412,0.00018496,2]
[392461040,1761505833046,-882.10245529,0.00018496,2]
[392461054,1761505838109,-172.8297827,0.00017326,2]
[392461055,1761505838119,-135.0067171,0.00018496,2]
[392461151,1761506273518,632.856995,0.00013699,2]
[392461170,1761506875737,792.76246149,0.00015574,2]
[392461172,1761506878156,3171.04984598,0.00015574,2]
[392461173,1761506880275,1644.63241646,0.0001564,2]
[392461497,1761507040418,-445.84321954,0.000164,2]
[392461498,1761507040428,-14.91410713,0.00017855,2]
[392461535,1761507185530,1999.0,0.00030136,120]
[392461536,1761507190493,165.658393,0.00013699,2]
[392461537,1761507416822,500.0,0.00030136,120]
[392461538,1761507422147,1148.91,0.00030136,120]
[392461564,1761508032368,30013.0761386,0.00015,2]
[392461565,1761508032396,207147.2631914,0.00015,2]
[392461568,1761508060625,626.0,0.00030137,120]
[392461588,1761508232488,-1000.0,0.00017741,2]
[392461590,1761508232499,-666.0,0.00017789,2]
[392461592,1761508232508,-277.2461545,0.00017849,2]
[392461594,1761508232518,-252.5999112,0.00017855,2]
[392461596,1761508232527,-178.19726649,0.00018153,2]
[392461599,1761508232543,-21.82771551,0.00018153,2]
[392461602,1761508232553,-300.0,0.00018299,2]
[392461605,1761508232562,-164.42682938,0.000183,2]
[392461608,1761508232571,-195.25612313,0.000183,2]
[392461611,1761508232580,-318.07413824,0.000183,2]
[392461614,1761508232589,-199.72131866,0.000183,2]
[392461617,1761508232598,-190.31864333,0.000183,2]
[392461621,1761508232610,-860.92809709,0.000183,2]
[392461624,1761508232619,-1334.17006642,0.000183,2]
[392461627,1761508232628,-393.3110871,0.000183,2]
[392461630,1761508232637,-393.3110871,0.000183,2]
[392461633,1761508232646,-393.3110871,0.000183,2]
[392461635,1761508232655,-393.3110871,0.000183,2]
[392461637,1761508232663,-2000.0,0.00018349,2]
[392461639,1761508232672,-90.03511468,0.00018349,2]
[392461762,1761508240713,-195.25612313,0.000184,2]
[392461763,1761508240722,-318.07413824,0.000184,2]
[392461764,1761508240733,-190.31864333,0.000184,2]
[392461765,1761508240742,-199.72131866,0.000184,2]
[392461766,1761508240761,-300.0,0.000185,2]
[392461767,1761508240770,-1334.17006642,0.000185,2]
[392461768,1761508240779,-393.3110871,0.000185,2]
[392461769,1761508240788,-391.7708471,0.000185,2]
[392461770,1761508240797,-399.5950089,0.00018523,2]
[392461771,1761508240806,-318.07413824,0.000186,2]
[392461772,1761508240816,-190.4175637,0.00018602,2]
[392461773,1761508240826,-743.8513774,0.00018602,2]
[392461774,1761508240842,-153.0,0.00018602,2]
[392461775,1761508240851,-190.4175637,0.00018602,2]
[392461776,1761508240860,-153.0,0.00018602,2]
[392461777,1761508240869,-190.4175637,0.00018602,2]
[392461778,1761508240879,-153.0,0.00018602,2]
[392461779,1761508240888,-190.2246121,0.00018602,2]
[392461780,1761508240897,-153.0,0.00018602,2]
[392461781,1761508240907,-1334.17006642,0.000187,2]
[392461782,1761508240916,-577.84684547,0.00018766,2]
[392461783,1761508240925,-158.00903655,0.00018766,2]
[392461784,1761508240935,-500.0,0.00018766,2]
[392461785,1761508240945,-500.0,0.00018766,2]
[392461786,1761508240954,-211.99903493,0.00018766,2]
[392461787,1761508240964,-300.0,0.00018767,2]
[392461788,1761508240973,-300.0,0.00018767,2]
[392461789,1761508240982,-300.0,0.00018767,2]
[392461790,1761508240991,-300.0,0.00018767,2]
[392461791,1761508241001,-300.0,0.00018767,2]
[392461792,1761508241010,-300.0,0.00018767,2]
[392461793,1761508241020,-300.0,0.00018767,2]
[392461794,1761508241028,-300.0,0.00018767,2]
[392461795,1761508241038,-300.0,0.00018767,2]
[392461796,1761508241047,-300.0,0.00018767,2]
[392461797,1761508241056,-300.0,0.00018767,2]
[392461798,1761508241066,-300.0,0.00018767,2]
[392461799,1761508241075,-300.0,0.00018767,2]
[392461800,1761508241084,-300.0,0.00018767,2]
[392461801,1761508241093,-300.0,0.00018767,2]
[392461802,1761508241102,-153.11738616,0.00018767,2]
[392461803,1761508241111,-500.0,0.00018767,2]
[392461804,1761508241120,-318.07413824,0.000188,2]
[392461805,1761508241129,-151.0,0.000188,2]
[392461806,1761508241138,-151.0,0.00018855,2]
[392461807,1761508241148,-1334.17006642,0.000189,2]
[392461808,1761508241157,-303.03333336,0.000189,2]
[392461809,1761508241166,-198.0,0.0001891,2]
[392461810,1761508241175,-318.07413824,0.00019,2]
[392461811,1761508241185,-942.25186125,0.00019041,2]
[392461812,1761508241194,-500.0,0.00019041,2]
[392461813,1761508241202,-303.03333336,0.00019089,2]
[392461814,1761508241212,-1334.17006642,0.000191,2]
[392461815,1761508241222,-600.0,0.00019141,2]
[392461816,1761508241231,-303.03333336,0.00019278,2]
[392461817,1761508241241,-500.0,0.00019315,2]
[392461818,1761508241250,-393.3110871,0.00019363,2]
[392461819,1761508241259,-393.3110871,0.00019363,2]
[392461820,1761508241269,-393.3110871,0.00019363,2]
[392461821,1761508241278,-393.3110871,0.00019363,2]
[392461822,1761508241287,-393.3110871,0.00019363,2]
[392461823,1761508241296,-298.21,0.00019443,2]
[392461824,1761508241305,-303.03333336,0.00019467,2]
[392461825,1761508241314,-543.7145945,0.00019589,2]
[392461826,1761508241323,-303.03333336,0.00019656,2]
[392461827,1761508241333,-331.0,0.00019664,2]
[392461828,1761508241342,-163.0,0.00019664,2]
[392461829,1761508241351,-163.0,0.00019664,2]
[392461830,1761508241360,-163.0,0.00019664,2]
[392461831,1761508241369,-152.77623627,0.00019664,2]
[392461832,1761508241378,-1080.73365888,0.00019745,2]
[392461833,1761508241387,-372.81497332,0.00019773,2]
[392461834,1761508241396,-179.32141722,0.00019773,2]
[392461835,1761508241405,-703.56,0.00019832,3]
[392461836,1761508241414,-66046.79977987,0.00019842,2]